[Event "NK Rapid Vrouwen 2019"]
[Site "Amstelveen, Netherlands"]
[Date "2019.12.01"]
[Round "1.1"]
[White "Ratsma, Rosa"]
[Black "Keetman, Maaike"]
[Result "1/2-1/2"]
[TimeControl "15m+10s"]
[WhiteTitle "WIM"]
[WhiteFideId "1033662"]
[BlackFideId "1033697"]
[WhiteElo "2274"]
[BlackElo "2181"]

1. e4 {[%clk 00:15:17]} {[%emt 00:00:03]} e6 {[%clk 00:15:18]} {[%emt
00:00:02]} 2. d4 {[%clk 00:15:24]} {[%emt 00:00:04]} d5 {[%clk 00:15:25]}
{[%emt 00:00:02]} 3. exd5 {[%clk 00:15:29]} {[%emt 00:00:05]} exd5 {[%clk
00:15:33]} {[%emt 00:00:03]} 4. Nf3 {[%clk 00:15:36]} {[%emt 00:00:03]} Bd6
{[%clk 00:15:38]} {[%emt 00:00:05]} 5. c4 {[%clk 00:15:41]} {[%emt 00:00:05]}
Nf6 {[%clk 00:15:09]} {[%emt 00:00:38]} 6. c5 {[%clk 00:15:45]} {[%emt
00:00:07]} Be7 {[%clk 00:15:13]} {[%emt 00:00:06]} 7. Bd3 {[%clk 00:15:50]}
{[%emt 00:00:05]} O-O {[%clk 00:15:06]} {[%emt 00:00:18]} 8. O-O {[%clk
00:15:55]} {[%emt 00:00:05]} b6 {[%clk 00:12:18]} {[%emt 00:02:58]} 9. b4
{[%clk 00:13:51]} {[%emt 00:02:14]} a5 {[%clk 00:11:04]} {[%emt 00:01:23]} 10.
cxb6 {[%clk 00:13:28]} {[%emt 00:00:34]} Bxb4 {[%clk 00:09:27]} {[%emt
00:01:47]} 11. bxc7 {[%clk 00:11:42]} {[%emt 00:01:57]} Qxc7 {[%clk 00:09:34]}
{[%emt 00:00:02]} 12. h3 {[%clk 00:10:52]} {[%emt 00:00:59]} Ba6 {[%clk
00:08:40]} {[%emt 00:01:04]} 13. Be3 {[%clk 00:10:50]} {[%emt 00:00:13]} Nbd7
{[%clk 00:08:03]} {[%emt 00:00:47]} 14. Bxa6 {[%clk 00:08:38]} {[%emt
00:02:22]} Rxa6 {[%clk 00:08:11]} {[%emt 00:00:02]} 15. Nbd2 {[%clk 00:08:45]}
{[%emt 00:00:03]} Rc6 {[%clk 00:07:00]} {[%emt 00:01:22]} 16. a3 {[%clk
00:08:15]} {[%emt 00:00:40]} Bd6 {[%clk 00:06:15]} {[%emt 00:00:54]} 17. Nb3
{[%clk 00:07:40]} {[%emt 00:00:45]} Ne4 {[%clk 00:05:58]} {[%emt 00:00:27]} 18.
Nc1 {[%clk 00:06:07]} {[%emt 00:01:44]} Rc3 {[%clk 00:04:44]} {[%emt 00:01:23]}
19. a4 {[%clk 00:05:53]} {[%emt 00:00:24]} Rb8 {[%clk 00:03:14]} {[%emt
00:01:41]} 20. Ne2 {[%clk 00:04:07]} {[%emt 00:01:55]} Rc6 {[%clk 00:02:44]}
{[%emt 00:00:42]} 21. Rc1 {[%clk 00:02:52]} {[%emt 00:01:26]} Nb6 {[%clk
00:02:32]} {[%emt 00:00:21]} 22. Re1 {[%clk 00:01:48]} {[%emt 00:01:14]} h6
{[%clk 00:02:22]} {[%emt 00:00:20]} 23. Nd2 {[%clk 00:01:46]} {[%emt 00:00:12]}
Nxd2 {[%clk 00:02:12]} {[%emt 00:00:20]} 24. Bxd2 {[%clk 00:01:45]} {[%emt
00:00:11]} Nc4 {[%clk 00:02:11]} {[%emt 00:00:11]} 25. Bc3 {[%clk 00:01:42]}
{[%emt 00:00:13]} Bb4 {[%clk 00:01:14]} {[%emt 00:01:07]} 26. Qd3 {[%clk
00:01:36]} {[%emt 00:00:16]} Bxc3 {[%clk 00:01:03]} {[%emt 00:00:20]} 27. Rxc3
{[%clk 00:01:28]} {[%emt 00:00:17]} Nb2 {[%clk 00:01:07]} {[%emt 00:00:06]} 28.
Rxc6 {[%clk 00:01:35]} {[%emt 00:00:04]} Qxc6 {[%clk 00:01:17]} 29. Qg3 {[%clk
00:01:27]} {[%emt 00:00:17]} Rb4 {[%clk 00:01:15]} {[%emt 00:00:12]} 30. Rc1
{[%clk 00:01:10]} {[%emt 00:00:27]} Qxa4 {[%clk 00:00:59]} {[%emt 00:00:26]} 31.
Rc8+ {[%clk 00:01:05]} {[%emt 00:00:14]} Kh7 {[%clk 00:01:08]} 32. Qf3 {[%clk
00:00:38]} {[%emt 00:00:38]} Qd7 {[%clk 00:01:07]} {[%emt 00:00:12]} 33. Rc5
{[%clk 00:00:42]} {[%emt 00:00:06]} Rb5 {[%clk 00:00:56]} {[%emt 00:00:21]} 34.
Rxb5 {[%clk 00:00:40]} {[%emt 00:00:12]} Qxb5 {[%clk 00:01:05]} {[%emt
00:00:01]} 35. Qf5+ {[%clk 00:00:47]} {[%emt 00:00:02]} Kg8 {[%clk 00:01:11]}
{[%emt 00:00:05]} 36. Qc8+ {[%clk 00:00:54]} {[%emt 00:00:04]} Kh7 {[%clk
00:01:20]} 37. Qf5+ {[%clk 00:01:02]} {[%emt 00:00:02]} Kg8 {[%clk 00:01:29]}
{[%emt 00:00:01]} 38. Qc8+ {[%clk 00:01:04]} {[%emt 00:00:08]} Kh7 {[%clk
00:01:38]} {[%emt 00:00:01]} 39. Qf5+ {[%clk 00:01:12]} {[%emt 00:00:02]}
1/2-1/2

[Event "NK Rapid Vrouwen 2019"]
[Site "Amstelveen, Netherlands"]
[Date "2019.12.01"]
[Round "1.2"]
[White "Haast, Anne"]
[Black "Paulet, Iozefina"]
[Result "1/2-1/2"]
[TimeControl "15m+10s"]
[WhiteTitle "WGM"]
[BlackTitle "WGM"]
[WhiteFideId "1017292"]
[BlackFideId "1213261"]
[WhiteElo "2288"]
[BlackElo "2294"]

1. e4 {[%clk 00:15:19]} e6 {[%clk 00:15:19]} {[%emt 00:00:02]} 2. d4 {[%clk
00:15:22]} {[%emt 00:00:06]} d5 {[%clk 00:15:26]} {[%emt 00:00:03]} 3. Nc3
{[%clk 00:15:19]} {[%emt 00:00:13]} Nf6 {[%clk 00:15:08]} {[%emt 00:00:29]} 4.
Bg5 {[%clk 00:15:03]} {[%emt 00:00:26]} Bb4 {[%clk 00:15:09]} {[%emt 00:00:09]}
5. e5 {[%clk 00:14:53]} {[%emt 00:00:19]} h6 {[%clk 00:15:17]} {[%emt
00:00:02]} 6. Bd2 {[%clk 00:14:25]} {[%emt 00:00:38]} Bxc3 {[%clk 00:15:20]}
{[%emt 00:00:08]} 7. bxc3 {[%clk 00:14:28]} {[%emt 00:00:07]} Ne4 {[%clk
00:15:28]} {[%emt 00:00:02]} 8. Ne2 {[%clk 00:14:05]} {[%emt 00:00:32]} Nxd2
{[%clk 00:15:23]} {[%emt 00:00:15]} 9. Qxd2 {[%clk 00:14:11]} {[%emt 00:00:05]}
c5 {[%clk 00:15:32]} {[%emt 00:00:01]} 10. Ng3 {[%clk 00:13:53]} {[%emt
00:00:28]} Nc6 {[%clk 00:15:32]} {[%emt 00:00:10]} 11. Bb5 {[%clk 00:13:28]}
{[%emt 00:00:34]} Bd7 {[%clk 00:15:16]} {[%emt 00:00:27]} 12. a4 {[%clk
00:12:59]} {[%emt 00:00:39]} Qa5 {[%clk 00:11:47]} {[%emt 00:03:39]} 13. Nh5
{[%clk 00:10:12]} {[%emt 00:02:57]} O-O-O {[%clk 00:10:57]} {[%emt 00:01:01]}
14. Bxc6 {[%clk 00:09:43]} {[%emt 00:00:39]} Bxc6 {[%clk 00:11:05]} {[%emt
00:00:02]} 15. O-O {[%clk 00:09:39]} {[%emt 00:00:15]} cxd4 {[%clk 00:10:14]}
{[%emt 00:01:01]} 16. Qxd4 {[%clk 00:09:46]} {[%emt 00:00:03]} g6 {[%clk
00:09:48]} {[%emt 00:00:36]} 17. Nf4 {[%clk 00:09:46]} {[%emt 00:00:09]} Kb8
{[%clk 00:09:52]} {[%emt 00:00:07]} 18. Qb4 {[%clk 00:08:39]} {[%emt 00:01:17]}
Qxb4 {[%clk 00:07:27]} {[%emt 00:02:35]} 19. cxb4 {[%clk 00:08:47]} {[%emt
00:00:02]} d4 {[%clk 00:07:04]} {[%emt 00:00:32]} 20. Rfe1 {[%clk 00:07:51]}
{[%emt 00:01:05]} g5 {[%clk 00:07:10]} {[%emt 00:00:04]} 21. Nd3 {[%clk
00:07:24]} {[%emt 00:00:37]} b6 {[%clk 00:07:18]} {[%emt 00:00:02]} 22. Nb2
{[%clk 00:06:54]} {[%emt 00:00:40]} Rd5 {[%clk 00:04:12]} {[%emt 00:03:16]} 23.
Ra3 {[%clk 00:06:30]} {[%emt 00:00:34]} Rc8 {[%clk 00:04:15]} {[%emt 00:00:07]}
24. h4 {[%clk 00:05:27]} {[%emt 00:01:13]} Be8 {[%clk 00:04:17]} {[%emt
00:00:09]} 25. Re2 {[%clk 00:04:47]} {[%emt 00:00:50]} Rc3 {[%clk 00:04:05]}
{[%emt 00:00:22]} 26. Ra1 {[%clk 00:04:48]} {[%emt 00:00:09]} gxh4 {[%clk
00:03:42]} {[%emt 00:00:33]} 27. Nd3 {[%clk 00:04:50]} {[%emt 00:00:08]} Rd8
{[%clk 00:03:32]} {[%emt 00:00:20]} 28. b5 {[%clk 00:04:42]} {[%emt 00:00:18]}
Rdc8 {[%clk 00:03:33]} {[%emt 00:00:09]} 29. Ra2 {[%clk 00:04:45]} {[%emt
00:00:08]} a6 {[%clk 00:02:53]} {[%emt 00:00:50]} 30. bxa6 {[%clk 00:04:28]}
{[%emt 00:00:27]} R8c4 {[%clk 00:02:54]} {[%emt 00:00:09]} 31. Re4 {[%clk
00:04:35]} {[%emt 00:00:03]} Ka7 {[%clk 00:02:42]} {[%emt 00:00:22]} 32. Rxh4
{[%clk 00:04:21]} {[%emt 00:00:24]} Bxa4 {[%clk 00:02:04]} {[%emt 00:00:48]} 33.
Nb2 {[%clk 00:03:36]} {[%emt 00:00:56]} Bxc2 {[%clk 00:00:55]} {[%emt
00:01:19]} 34. Nxc4 {[%clk 00:03:41]} {[%emt 00:00:06]} Rxc4 {[%clk 00:01:04]}
35. Rf4 {[%clk 00:03:12]} {[%emt 00:00:39]} Bg6 {[%clk 00:00:57]} {[%emt
00:00:17]} 36. Kh2 {[%clk 00:03:21]} {[%emt 00:00:01]} b5 {[%clk 00:00:59]}
{[%emt 00:00:08]} 37. Kg3 {[%clk 00:02:58]} {[%emt 00:00:34]} d3 {[%clk
00:01:06]} {[%emt 00:00:02]} 38. Kf3 {[%clk 00:02:52]} {[%emt 00:00:16]} Rc2
{[%clk 00:00:32]} {[%emt 00:00:44]} 39. Ra3 {[%clk 00:02:38]} {[%emt 00:00:25]}
Rc4 {[%clk 00:00:15]} {[%emt 00:00:28]} 40. Rxc4 {[%clk 00:02:30]} {[%emt
00:00:18]} bxc4 {[%clk 00:00:24]} {[%emt 00:00:01]} 41. Ke3 {[%clk 00:02:39]}
h5 {[%clk 00:00:28]} {[%emt 00:00:05]} 42. f3 {[%clk 00:02:30]} {[%emt
00:00:19]} c3 {[%clk 00:00:35]} {[%emt 00:00:03]} 43. Rxc3 {[%clk 00:02:33]}
{[%emt 00:00:07]} Kxa6 {[%clk 00:00:44]} 44. Rb3 {[%clk 00:02:15]} {[%emt
00:00:28]} Ka5 {[%clk 00:00:52]} {[%emt 00:00:03]} 45. Kd2 {[%clk 00:02:13]}
{[%emt 00:00:12]} Ka4 {[%clk 00:00:58]} {[%emt 00:00:04]} 46. Rb2 {[%clk
00:02:22]} {[%emt 00:00:01]} Ka3 {[%clk 00:01:07]} {[%emt 00:00:01]} 47. Kc3
{[%clk 00:02:31]} Ka4 {[%clk 00:01:10]} {[%emt 00:00:05]} 48. Rb4+ {[%clk
00:02:03]} {[%emt 00:00:39]} Ka5 {[%clk 00:01:19]} {[%emt 00:00:02]} 49. Rb8
{[%clk 00:02:02]} {[%emt 00:00:11]} Ka6 {[%clk 00:01:24]} {[%emt 00:00:05]} 50.
Kd2 {[%clk 00:02:09]} {[%emt 00:00:03]} Ka5 {[%clk 00:01:32]} {[%emt 00:00:02]}
51. Ke3 {[%clk 00:02:17]} {[%emt 00:00:02]} Ka6 {[%clk 00:01:38]} {[%emt
00:00:04]} 52. Rb2 {[%clk 00:01:55]} {[%emt 00:00:32]} Ka5 {[%clk 00:01:47]}
{[%emt 00:00:02]} 53. Kd4 {[%clk 00:01:52]} {[%emt 00:00:12]} Ka4 {[%clk
00:01:43]} {[%emt 00:00:15]} 54. Kc4 {[%clk 00:02:01]} {[%emt 00:00:02]} Ka3
{[%clk 00:01:49]} {[%emt 00:00:03]} 55. Rd2 {[%clk 00:02:09]} {[%emt 00:00:02]}
Bf5 {[%clk 00:01:43]} {[%emt 00:00:16]} 56. g3 {[%clk 00:02:11]} {[%emt
00:00:08]} Bg6 {[%clk 00:01:43]} {[%emt 00:00:10]} 57. Rh2 {[%clk 00:01:59]}
{[%emt 00:00:22]} Bf5 {[%clk 00:01:52]} {[%emt 00:00:02]} 58. Kc3 {[%clk
00:01:36]} {[%emt 00:00:32]} Bg6 {[%clk 00:02:00]} {[%emt 00:00:02]} 59. Rh4
{[%clk 00:01:33]} {[%emt 00:00:13]} Ka2 {[%clk 00:01:56]} {[%emt 00:00:14]} 60.
Rd4 {[%clk 00:01:41]} {[%emt 00:00:02]} Kb1 {[%clk 00:01:10]} {[%emt 00:00:56]}
61. Kd2 {[%clk 00:01:50]} {[%emt 00:00:02]} Kb2 {[%clk 00:01:14]} {[%emt
00:00:05]} 62. Rb4+ {[%clk 00:01:24]} {[%emt 00:00:36]} Ka3 {[%clk 00:01:08]}
{[%emt 00:00:16]} 63. Rb8 {[%clk 00:01:32]} {[%emt 00:00:02]} Ka4 {[%clk
00:01:12]} {[%emt 00:00:06]} 64. Kc3 {[%clk 00:01:33]} {[%emt 00:00:09]} Ka5
{[%clk 00:01:17]} {[%emt 00:00:05]} 65. Rb2 {[%clk 00:01:39]} {[%emt 00:00:04]}
Ka4 {[%clk 00:01:14]} {[%emt 00:00:13]} 66. g4 {[%clk 00:01:44]} {[%emt
00:00:05]} hxg4 {[%clk 00:01:21]} {[%emt 00:00:03]} 67. Rb4+ {[%clk 00:01:54]}
Ka5 {[%clk 00:01:27]} {[%emt 00:00:04]} 68. Rxg4 {[%clk 00:01:51]} {[%emt
00:00:12]} Kb5 {[%clk 00:01:33]} {[%emt 00:00:04]} 69. Rxg6 {[%clk 00:01:44]}
{[%emt 00:00:17]} fxg6 {[%clk 00:01:37]} {[%emt 00:00:05]} 70. Kxd3 {[%clk
00:01:53]} {[%emt 00:00:01]} Kc5 {[%clk 00:01:42]} {[%emt 00:00:06]} 71. Ke3
{[%clk 00:00:55]} {[%emt 00:01:09]} Kd5 {[%clk 00:01:45]} {[%emt 00:00:07]} 72.
f4 {[%clk 00:00:41]} {[%emt 00:00:24]} g5 {[%clk 00:01:54]} {[%emt 00:00:01]}
73. fxg5 {[%clk 00:00:49]} {[%emt 00:00:02]} Kxe5 {[%emt 00:00:05]} 1/2-1/2

[Event "NK Rapid Vrouwen 2019"]
[Site "Amstelveen, Netherlands"]
[Date "2019.12.01"]
[Round "1.3"]
[White "Peng, Zhaoqin"]
[Black "Lanchava, Tea"]
[Result "1-0"]
[TimeControl "15m+10s"]
[WhiteTitle "GM"]
[BlackTitle "IM"]
[WhiteFideId "1004786"]
[BlackFideId "1005308"]
[WhiteElo "2364"]
[BlackElo "2247"]

1. e4 {[%clk 00:15:14]} {[%emt 00:00:05]} g6 {[%clk 00:15:14]} {[%emt
00:00:06]} 2. d4 {[%clk 00:15:20]} {[%emt 00:00:05]} Bg7 {[%clk 00:15:21]}
{[%emt 00:00:03]} 3. c4 {[%clk 00:15:14]} {[%emt 00:00:16]} d6 {[%clk
00:15:21]} {[%emt 00:00:11]} 4. Nc3 {[%clk 00:15:21]} {[%emt 00:00:03]} Nd7
{[%clk 00:14:54]} {[%emt 00:00:37]} 5. f4 {[%clk 00:14:02]} {[%emt 00:01:28]}
e5 {[%clk 00:14:53]} {[%emt 00:00:11]} 6. fxe5 {[%clk 00:14:10]} {[%emt
00:00:02]} dxe5 {[%clk 00:14:58]} {[%emt 00:00:05]} 7. d5 {[%clk 00:14:20]}
Ngf6 {[%clk 00:14:53]} {[%emt 00:00:15]} 8. Be3 {[%clk 00:14:10]} {[%emt
00:00:20]} O-O {[%clk 00:14:49]} {[%emt 00:00:13]} 9. Be2 {[%clk 00:13:43]}
{[%emt 00:00:37]} Qe7 {[%clk 00:14:34]} {[%emt 00:00:25]} 10. Nh3 {[%clk
00:13:38]} {[%emt 00:00:15]} Nc5 {[%clk 00:14:19]} {[%emt 00:00:25]} 11. Nf2
{[%clk 00:13:47]} {[%emt 00:00:01]} Rd8 {[%clk 00:13:18]} {[%emt 00:01:10]} 12.
O-O {[%clk 00:13:44]} {[%emt 00:00:13]} c6 {[%clk 00:12:44]} {[%emt 00:00:44]}
13. Qc2 {[%clk 00:12:20]} {[%emt 00:01:34]} Ne8 {[%clk 00:12:23]} {[%emt
00:00:32]} 14. b4 {[%clk 00:11:45]} {[%emt 00:00:46]} Na6 {[%clk 00:12:14]}
{[%emt 00:00:18]} 15. a3 {[%clk 00:11:53]} {[%emt 00:00:02]} f5 {[%clk
00:11:34]} {[%emt 00:00:50]} 16. c5 {[%clk 00:10:34]} {[%emt 00:01:29]} f4
{[%clk 00:11:00]} {[%emt 00:00:43]} 17. Bc1 {[%clk 00:10:10]} {[%emt 00:00:33]}
Nf6 {[%clk 00:10:25]} {[%emt 00:00:45]} 18. dxc6 {[%clk 00:06:44]} {[%emt
00:03:36]} bxc6 {[%clk 00:10:28]} {[%emt 00:00:07]} 19. Qa4 {[%clk 00:06:51]}
{[%emt 00:00:03]} Nb8 {[%clk 00:10:23]} {[%emt 00:00:15]} 20. Bb2 {[%clk
00:06:54]} {[%emt 00:00:08]} g5 {[%clk 00:09:01]} {[%emt 00:01:33]} 21. Rad1
{[%clk 00:06:54]} {[%emt 00:00:09]} Rf8 {[%clk 00:09:05]} {[%emt 00:00:06]} 22.
b5 {[%clk 00:06:59]} {[%emt 00:00:05]} Qxc5 {[%clk 00:07:33]} {[%emt 00:01:42]}
23. Qc4+ {[%clk 00:06:19]} {[%emt 00:00:50]} Qxc4 {[%clk 00:07:41]} {[%emt
00:00:03]} 24. Bxc4+ {[%clk 00:06:28]} {[%emt 00:00:01]} Kh8 {[%clk 00:07:50]}
25. a4 {[%clk 00:06:18]} {[%emt 00:00:20]} Bd7 {[%clk 00:07:01]} {[%emt
00:01:00]} 26. Rd6 {[%clk 00:05:25]} {[%emt 00:01:02]} cxb5 {[%clk 00:05:45]}
{[%emt 00:01:26]} 27. axb5 {[%clk 00:05:05]} {[%emt 00:00:30]} Rc8 {[%clk
00:05:46]} {[%emt 00:00:09]} 28. Be2 {[%clk 00:04:34]} {[%emt 00:00:40]} Be8
{[%clk 00:04:18]} {[%emt 00:01:39]} 29. Ra1 {[%clk 00:02:46]} {[%emt 00:01:58]}
Nbd7 {[%clk 00:04:22]} {[%emt 00:00:06]} 30. Kf1 {[%clk 00:02:20]} {[%emt
00:00:36]} Bf8 {[%clk 00:04:28]} {[%emt 00:00:04]} 31. Rda6 {[%clk 00:02:16]}
{[%emt 00:00:14]} Bb4 {[%clk 00:04:17]} {[%emt 00:00:21]} 32. Nd5 {[%clk
00:02:08]} {[%emt 00:00:17]} Nxd5 {[%clk 00:04:05]} {[%emt 00:00:22]} 33. exd5
{[%clk 00:02:17]} Bc5 {[%clk 00:03:36]} {[%emt 00:00:40]} 34. Nd3 {[%clk
00:02:04]} {[%emt 00:00:23]} Bb6 {[%clk 00:03:00]} {[%emt 00:00:46]} 35. Nxe5
{[%clk 00:02:06]} {[%emt 00:00:08]} Nxe5 {[%clk 00:03:09]} {[%emt 00:00:01]} 36.
Bxe5+ {[%clk 00:02:14]} {[%emt 00:00:02]} Kg8 {[%clk 00:03:18]} 37. R6a2 {[%clk
00:01:39]} {[%emt 00:00:45]} Bf7 {[%clk 00:03:16]} {[%emt 00:00:13]} 38. Rd2
{[%clk 00:01:30]} {[%emt 00:00:19]} Be3 {[%clk 00:03:24]} {[%emt 00:00:02]} 39.
Rdd1 {[%clk 00:01:36]} {[%emt 00:00:04]} Re8 {[%clk 00:03:08]} {[%emt
00:00:26]} 40. Bf6 {[%clk 00:01:41]} {[%emt 00:00:04]} h6 {[%clk 00:02:27]}
{[%emt 00:00:51]} 41. d6 {[%clk 00:01:50]} {[%emt 00:00:01]} Bb6 {[%clk
00:02:36]} 42. Bd4 {[%clk 00:01:50]} {[%emt 00:00:10]} Rxe2 {[%clk 00:02:14]}
{[%emt 00:00:32]} 43. Kxe2 {[%clk 00:01:48]} {[%emt 00:00:12]} Bh5+ {[%clk
00:02:23]} {[%emt 00:00:01]} 44. Kd3 {[%clk 00:01:42]} {[%emt 00:00:16]} Bxd1
{[%clk 00:02:29]} {[%emt 00:00:04]} 45. Rxd1 {[%clk 00:01:51]} {[%emt
00:00:01]} Kf7 {[%clk 00:02:14]} {[%emt 00:00:26]} 46. Re1 {[%emt 00:01:00]}
Bd8 {[%clk 00:01:53]} 47. Kc4 {[%clk 00:01:34]} {[%emt 00:00:08]} h5 {[%clk
00:01:44]} {[%emt 00:00:19]} 48. Kd5 {[%clk 00:01:39]} {[%emt 00:00:04]} g4
{[%clk 00:01:34]} {[%emt 00:00:20]} 49. Ra1 {[%clk 00:01:48]} {[%emt 00:00:01]}
Rb8 {[%clk 00:00:24]} {[%emt 00:01:20]} 50. Kc6 {[%clk 00:01:32]} {[%emt
00:00:26]} Ke6 {[%clk 00:00:23]} {[%emt 00:00:12]} 51. Re1 {[%clk 00:01:38]}
{[%emt 00:00:03]} Kf5 {[%clk 00:00:17]} {[%emt 00:00:16]} 52. Bxa7 {[%clk
00:01:38]} {[%emt 00:00:11]} Rc8+ {[%clk 00:00:24]} {[%emt 00:00:03]} 53. Kd7
{[%clk 00:01:46]} {[%emt 00:00:02]} Ra8 {[%clk 00:00:33]} {[%emt 00:00:01]} 54.
b6 {[%clk 00:01:53]} {[%emt 00:00:03]} Bh4 {[%clk 00:00:34]} {[%emt 00:00:08]}
55. Re8 {[%clk 00:01:40]} {[%emt 00:00:24]} f3 {[%clk 00:00:37]} {[%emt
00:00:07]} 56. gxf3 {[%clk 00:01:46]} {[%emt 00:00:03]} gxf3 {[%clk 00:00:45]}
{[%emt 00:00:01]} 57. Rxa8 {[%clk 00:01:54]} {[%emt 00:00:02]} f2 {[%clk
00:00:55]} {[%emt 00:00:01]} 58. Rf8+ {[%clk 00:01:44]} {[%emt 00:00:20]} Bf6
{[%clk 00:01:04]} 59. b7 {[%clk 00:01:35]} {[%emt 00:00:19]} f1=Q {[%clk
00:01:12]} {[%emt 00:00:01]} 60. b8=Q {[%clk 00:01:43]} {[%emt 00:00:02]} Qc4
{[%clk 00:01:11]} {[%emt 00:00:11]} 61. Qb1+ {[%clk 00:01:21]} {[%emt
00:00:32]} Kg5 {[%clk 00:01:16]} {[%emt 00:00:05]} 62. Qg1+ {[%clk 00:01:22]}
{[%emt 00:00:09]} Kf5 {[%clk 00:01:15]} {[%emt 00:00:11]} 63. Qc5+ {[%clk
00:01:27]} {[%emt 00:00:05]} 1-0